[Event "Early-Titled-Tuesday-Blitz-July-09-2024"]
[Site "Chess.com"]
[Date "2024.07.09"]
[Round "2"]
[White "Arimin1329"]
[Black "KNVB"]
[Result "0-1"]
[WhiteElo "2402"]
[BlackElo "2672"]
[TimeControl "180+1"]
[EndTime "8:16:55 PDT"]
[Termination "KNVB won by resignation"]

1. Nf3 {[%clk 0:03:00.9]} 1... d5 {[%clk 0:02:55.4]} 2. d4 {[%clk 0:03:00.3]}
2... Bf5 {[%clk 0:02:54.3]} 3. c4 {[%clk 0:02:58.9]} 3... e6 {[%clk 0:02:54.3]}
4. Qb3 {[%clk 0:02:55.9]} 4... Nc6 {[%clk 0:02:52.5]} 5. a3 {[%clk 0:02:49.2]}
5... Na5 {[%clk 0:02:45.7]} 6. Qa4+ {[%clk 0:02:42.7]} 6... c6 {[%clk
0:02:45.2]} 7. cxd5 {[%clk 0:02:36.8]} 7... exd5 {[%clk 0:02:42.4]} 8. Bg5
{[%clk 0:02:27.9]} 8... Qb6 {[%clk 0:02:36.7]} 9. b4 {[%clk 0:02:22.2]} 9... Nc4
{[%clk 0:02:33.7]} 10. Nbd2 {[%clk 0:02:10.6]} 10... Nxd2 {[%clk 0:02:17.8]} 11.
Bxd2 {[%clk 0:02:07]} 11... Bd6 {[%clk 0:02:07.2]} 12. e3 {[%clk 0:01:58]} 12...
Nf6 {[%clk 0:02:05.2]} 13. Be2 {[%clk 0:01:52.5]} 13... O-O {[%clk 0:02:03.9]}
14. O-O {[%clk 0:01:49]} 14... Ne4 {[%clk 0:01:06.2]} 15. b5 {[%clk 0:01:25.7]}
15... cxb5 {[%clk 0:01:03]} 16. Qxb5 {[%clk 0:01:19.6]} 16... Qxb5 {[%clk
0:00:49.3]} 17. Bxb5 {[%clk 0:01:20.5]} 17... Nxd2 {[%clk 0:00:29.4]} 18. Nxd2
{[%clk 0:01:21.4]} 18... Rfc8 {[%clk 0:00:27.4]} 19. Rfc1 {[%clk 0:00:53.4]}
19... Rxc1+ {[%clk 0:00:21.8]} 20. Rxc1 {[%clk 0:00:54.3]} 20... Bxa3 {[%clk
0:00:22.3]} 21. Rc7 {[%clk 0:00:52.6]} 21... Rb8 {[%clk 0:00:17.3]} 22. f3
{[%clk 0:00:16.3]} 22... Bd6 {[%clk 0:00:15.7]} 23. Rc3 {[%clk 0:00:16.5]} 23...
a6 {[%clk 0:00:12.7]} 24. Ba4 {[%clk 0:00:15.7]} 24... Bb4 {[%clk 0:00:09.7]}
0-1

[Event "Early-Titled-Tuesday-Blitz-July-09-2024"]
[Site "Chess.com"]
[Date "2024.07.09"]
[Round "2"]
[White "stepanosinovsky"]
[Black "quvnoq_muxlis"]
[Result "0-1"]
[WhiteElo "2354"]
[BlackElo "2712"]
[TimeControl "180+1"]
[EndTime "8:16:56 PDT"]
[Termination "quvnoq_muxlis won on time"]

1. Nf3 {[%clk 0:03:00.9]} 1... d5 {[%clk 0:02:57.9]} 2. g3 {[%clk 0:03:01.1]}
2... Nd7 {[%clk 0:02:57.4]} 3. Bg2 {[%clk 0:02:57.8]} 3... e5 {[%clk 0:02:57.4]}
4. O-O {[%clk 0:02:58.3]} 4... Ngf6 {[%clk 0:02:57.4]} 5. d3 {[%clk 0:02:45.6]}
5... Bd6 {[%clk 0:02:57.3]} 6. c4 {[%clk 0:02:41.9]} 6... c6 {[%clk 0:02:57.2]}
7. a3 {[%clk 0:02:37.7]} 7... O-O {[%clk 0:02:56.8]} 8. b4 {[%clk 0:02:36.5]}
8... a5 {[%clk 0:02:57]} 9. b5 {[%clk 0:02:25.3]} 9... cxb5 {[%clk 0:02:57.9]}
10. cxd5 {[%clk 0:02:22.9]} 10... Nxd5 {[%clk 0:02:24]} 11. Qb3 {[%clk
0:02:18.4]} 11... Nc7 {[%clk 0:02:21.8]} 12. Nc3 {[%clk 0:02:15.4]} 12... b4
{[%clk 0:02:19.6]} 13. Ne4 {[%clk 0:02:10.6]} 13... Be7 {[%clk 0:02:14.6]} 14.
axb4 {[%clk 0:01:59.8]} 14... Bxb4 {[%clk 0:02:15.5]} 15. Bb2 {[%clk 0:01:59]}
15... Re8 {[%clk 0:02:10.6]} 16. Rfc1 {[%clk 0:01:30.5]} 16... Ra6 {[%clk
0:01:58.1]} 17. Rc2 {[%clk 0:01:12.8]} 17... Rc6 {[%clk 0:01:34.9]} 18. Rxc6
{[%clk 0:00:56.1]} 18... bxc6 {[%clk 0:01:35.8]} 19. Rc1 {[%clk 0:00:53.2]}
19... c5 {[%clk 0:01:34.9]} 20. Nd6 {[%clk 0:00:51.4]} 20... Re6 {[%clk
0:01:22.5]} 21. Nxc8 {[%clk 0:00:40.6]} 21... Qxc8 {[%clk 0:01:23.4]} 22. Bh3
{[%clk 0:00:38.9]} 22... Re7 {[%clk 0:01:01.1]} 23. Nxe5 {[%clk 0:00:36.9]}
23... Ne6 {[%clk 0:01:01.2]} 24. Qd5 {[%clk 0:00:21.2]} 24... Nf6 {[%clk
0:00:44.1]} 25. Qc4 {[%clk 0:00:18.9]} 25... Qe8 {[%clk 0:00:38.3]} 26. Bg2
{[%clk 0:00:15.4]} 26... Nd4 {[%clk 0:00:35.8]} 27. Nc6 {[%clk 0:00:10.4]} 27...
Nxc6 {[%clk 0:00:34.9]} 28. Bxf6 {[%clk 0:00:07.7]} 28... gxf6 {[%clk
0:00:33.7]} 29. Qg4+ {[%clk 0:00:03.8]} 29... Kh8 {[%clk 0:00:33.9]} 30. Qf4
{[%clk 0:00:01.9]} 30... Re6 {[%clk 0:00:28.9]} 31. Bd5 {[%clk 0:00:01.1]} 31...
Nd4 {[%clk 0:00:29]} 0-1

[Event "Early-Titled-Tuesday-Blitz-July-09-2024"]
[Site "Chess.com"]
[Date "2024.07.09"]
[Round "2"]
[White "LikeWater"]
[Black "RTchess367"]
[Result "1-0"]
[WhiteElo "2701"]
[BlackElo "2285"]
[TimeControl "180+1"]
[EndTime "8:16:56 PDT"]
[Termination "LikeWater won by resignation"]

1. e4 {[%clk 0:03:00.9]} 1... c5 {[%clk 0:02:59]} 2. Nf3 {[%clk 0:02:58.1]} 2...
d6 {[%clk 0:02:58.7]} 3. d4 {[%clk 0:02:57.3]} 3... cxd4 {[%clk 0:02:59.6]} 4.
Nxd4 {[%clk 0:02:57.9]} 4... Nf6 {[%clk 0:02:59.8]} 5. Nc3 {[%clk 0:02:58.2]}
5... a6 {[%clk 0:03:00]} 6. Bc4 {[%clk 0:02:57]} 6... e6 {[%clk 0:02:59.8]} 7.
a4 {[%clk 0:02:56.8]} 7... Be7 {[%clk 0:02:58.8]} 8. O-O {[%clk 0:02:52.5]} 8...
O-O {[%clk 0:02:57.9]} 9. Be3 {[%clk 0:02:52.5]} 9... b6 {[%clk 0:02:55.4]} 10.
f4 {[%clk 0:02:48.6]} 10... Bb7 {[%clk 0:02:54]} 11. f5 {[%clk 0:02:33.9]} 11...
e5 {[%clk 0:02:49]} 12. Nde2 {[%clk 0:02:32.3]} 12... Nxe4 {[%clk 0:02:38]} 13.
Nxe4 {[%clk 0:02:23.8]} 13... Bxe4 {[%clk 0:02:38.9]} 14. Nc3 {[%clk 0:02:16.3]}
14... Bb7 {[%clk 0:02:37.4]} 15. Nd5 {[%clk 0:01:54.7]} 15... Bxd5 {[%clk
0:01:43.4]} 16. Bxd5 {[%clk 0:01:55.6]} 16... Ra7 {[%clk 0:01:42.6]} 17. a5
{[%clk 0:01:55.7]} 17... Nd7 {[%clk 0:01:37]} 18. axb6 {[%clk 0:01:37.5]} 18...
Nxb6 {[%clk 0:01:36.5]} 19. f6 {[%clk 0:01:37.9]} 19... Bxf6 {[%clk 0:01:25.8]}
20. Rxf6 {[%clk 0:01:34]} 20... Qxf6 {[%clk 0:01:07.5]} 21. Bxb6 {[%clk
0:01:33.4]} 21... Re7 {[%clk 0:01:02.4]} 22. Rxa6 {[%clk 0:01:32.5]} 22... e4
{[%clk 0:00:57.3]} 23. Bd4 {[%clk 0:01:29]} 23... Qg6 {[%clk 0:00:53.5]} 24. Bc3
{[%clk 0:01:12.5]} 24... e3 {[%clk 0:00:50.8]} 25. Qe2 {[%clk 0:01:09.2]} 25...
Qf5 {[%clk 0:00:36.4]} 26. Ra5 {[%clk 0:01:04.2]} 26... Qg6 {[%clk 0:00:25.1]}
27. Ra4 {[%clk 0:01:04.1]} 27... h5 {[%clk 0:00:22.6]} 28. Rh4 {[%clk
0:01:02.5]} 28... Rfe8 {[%clk 0:00:21.7]} 29. Rxh5 {[%clk 0:01:00.6]} 29... Ra7
{[%clk 0:00:20.3]} 30. h4 {[%clk 0:00:59.7]} 30... Ra1+ {[%clk 0:00:19.9]} 31.
Kh2 {[%clk 0:01:00.3]} 31... Ra7 {[%clk 0:00:05.7]} 32. Rg5 {[%clk 0:01:00]}
32... Qh6 {[%clk 0:00:05.2]} 33. Rxg7+ {[%clk 0:00:58.9]} 33... Kf8 {[%clk
0:00:05.8]} 34. Kh3 {[%clk 0:00:49.9]} 34... Ra4 {[%clk 0:00:05.2]} 35. Rxf7+
{[%clk 0:00:47.5]} 35... Kg8 {[%clk 0:00:05.3]} 36. Rf6+ {[%clk 0:00:44.4]} 1-0

[Event "Early-Titled-Tuesday-Blitz-July-09-2024"]
[Site "Chess.com"]
[Date "2024.07.09"]
[Round "2"]
[White "esskeettit"]
[Black "simonachess"]
[Result "1-0"]
[WhiteElo "2537"]
[BlackElo "2336"]
[TimeControl "180+1"]
[EndTime "8:16:56 PDT"]
[Termination "esskeettit won on time"]

1. d4 {[%clk 0:03:00.9]} 1... Nf6 {[%clk 0:02:59.8]} 2. c4 {[%clk 0:03:01.3]}
2... e6 {[%clk 0:03:00.3]} 3. Nc3 {[%clk 0:03:00.4]} 3... Be7 {[%clk 0:03:00.6]}
4. e4 {[%clk 0:03:00.7]} 4... d5 {[%clk 0:03:00.8]} 5. e5 {[%clk 0:02:59.6]}
5... Ne4 {[%clk 0:03:01]} 6. Bd3 {[%clk 0:02:58.7]} 6... Nxc3 {[%clk 0:03:00.7]}
7. bxc3 {[%clk 0:02:59.6]} 7... dxc4 {[%clk 0:03:01.2]} 8. Bxc4 {[%clk
0:02:59.2]} 8... O-O {[%clk 0:03:00.3]} 9. Nf3 {[%clk 0:02:59.4]} 9... b6 {[%clk
0:02:59.7]} 10. O-O {[%clk 0:02:59.2]} 10... Bb7 {[%clk 0:03:00.1]} 11. Qe2
{[%clk 0:02:54.2]} 11... Nc6 {[%clk 0:02:57.4]} 12. Rd1 {[%clk 0:02:53.8]} 12...
Na5 {[%clk 0:02:57.4]} 13. Bd3 {[%clk 0:02:53.4]} 13... Qc8 {[%clk 0:02:56.1]}
14. Bg5 {[%clk 0:02:36.9]} 14... Qd8 {[%clk 0:02:20.3]} 15. Bxe7 {[%clk
0:02:29.3]} 15... Qxe7 {[%clk 0:02:19.3]} 16. Qe3 {[%clk 0:02:27.2]} 16... Rfd8
{[%clk 0:02:08.5]} 17. Ng5 {[%clk 0:02:18.6]} 17... h6 {[%clk 0:01:55.8]} 18.
Ne4 {[%clk 0:02:18.1]} 18... Bxe4 {[%clk 0:01:45]} 19. Qxe4 {[%clk 0:02:16]}
19... g6 {[%clk 0:01:44.6]} 20. h4 {[%clk 0:02:11.5]} 20... h5 {[%clk
0:01:40.5]} 21. Qf4 {[%clk 0:02:03.2]} 21... c5 {[%clk 0:01:38.7]} 22. Be4
{[%clk 0:02:03.6]} 22... Rab8 {[%clk 0:01:37]} 23. Rd3 {[%clk 0:02:03.4]} 23...
cxd4 {[%clk 0:01:36.6]} 24. cxd4 {[%clk 0:02:04.3]} 24... Rbc8 {[%clk
0:01:29.2]} 25. Rad1 {[%clk 0:02:01]} 25... Nc6 {[%clk 0:01:19]} 26. a3 {[%clk
0:01:50.6]} 26... Qf8 {[%clk 0:00:58.2]} 27. d5 {[%clk 0:01:45.3]} 27... exd5
{[%clk 0:00:53.7]} 28. Bxd5 {[%clk 0:01:46.2]} 28... Ne7 {[%clk 0:00:54]} 29.
Bxf7+ {[%clk 0:01:42]} 29... Kh7 {[%clk 0:00:49.4]} 30. Qf6 {[%clk 0:01:03.5]}
30... Rxd3 {[%clk 0:00:22.5]} 31. Rxd3 {[%clk 0:01:04.4]} 31... Rc6 {[%clk
0:00:17.6]} 32. Bxg6+ {[%clk 0:00:59.5]} 32... Nxg6 {[%clk 0:00:17.4]} 33. Rd7+
{[%clk 0:00:49.8]} 33... Ne7 {[%clk 0:00:01.1]} 34. Rxe7+ {[%clk 0:00:48.8]}
34... Kg8 {[%clk 0:00:01.5]} 35. Qg5+ {[%clk 0:00:37.9]} 1-0

[Event "Early-Titled-Tuesday-Blitz-July-09-2024"]
[Site "Chess.com"]
[Date "2024.07.09"]
[Round "2"]
[White "AthanasiusLefebvre"]
[Black "Dreamer_01"]
[Result "0-1"]
[WhiteElo "2110"]
[BlackElo "2440"]
[TimeControl "180+1"]
[EndTime "8:16:56 PDT"]
[Termination "Dreamer_01 won by resignation"]

1. d3 {[%clk 0:03:00.9]} 1... d5 {[%clk 0:03:00]} 2. Nf3 {[%clk 0:03:00.5]} 2...
Nf6 {[%clk 0:02:59.3]} 3. g3 {[%clk 0:03:00.8]} 3... g6 {[%clk 0:02:59.6]} 4.
Bg2 {[%clk 0:03:01.3]} 4... Bg7 {[%clk 0:03:00.2]} 5. O-O {[%clk 0:03:01.8]}
5... O-O {[%clk 0:03:00.8]} 6. c4 {[%clk 0:03:02.4]} 6... c5 {[%clk 0:03:00.7]}
7. Nc3 {[%clk 0:03:02.6]} 7... Nc6 {[%clk 0:03:00.2]} 8. a3 {[%clk 0:03:02.1]}
8... dxc4 {[%clk 0:02:39.5]} 9. dxc4 {[%clk 0:03:01.7]} 9... Be6 {[%clk
0:02:40.1]} 10. Qa4 {[%clk 0:02:56.4]} 10... Qa5 {[%clk 0:02:35.1]} 11. Ng5
{[%clk 0:02:46.4]} 11... Qxa4 {[%clk 0:02:32]} 12. Nxa4 {[%clk 0:02:45.7]} 12...
Bxc4 {[%clk 0:02:32.6]} 13. Nxc5 {[%clk 0:02:42.2]} 13... h6 {[%clk 0:02:20.9]}
14. Nxb7 {[%clk 0:02:29]} 14... Nd4 {[%clk 0:02:19.4]} 15. Nf3 {[%clk
0:01:50.3]} 15... Nxe2+ {[%clk 0:02:14.8]} 16. Kh1 {[%clk 0:01:50]} 16... Ne4
{[%clk 0:02:04.7]} 17. Na5 {[%clk 0:01:43.8]} 17... Ba6 {[%clk 0:01:58.8]} 18.
Nd2 {[%clk 0:01:12.5]} 18... Nxc1 {[%clk 0:01:34.9]} 19. Bxe4 {[%clk 0:00:58.1]}
19... Rad8 {[%clk 0:00:50.1]} 20. Rfxc1 {[%clk 0:00:46.2]} 20... Rxd2 {[%clk
0:00:50.2]} 21. Rc6 {[%clk 0:00:34.8]} 21... Bxb2 {[%clk 0:00:43.6]} 22. Rb1
{[%clk 0:00:17.1]} 22... Bb5 {[%clk 0:00:40.9]} 23. Rc7 {[%clk 0:00:15.2]} 23...
a6 {[%clk 0:00:36.5]} 24. Rb7 {[%clk 0:00:14.3]} 24... Bxa3 {[%clk 0:00:34.6]}
25. Nc6 {[%clk 0:00:11.5]} 25... Rxf2 {[%clk 0:00:22.4]} 26. Nxe7+ {[%clk
0:00:10.2]} 26... Bxe7 {[%clk 0:00:23]} 27. Rxe7 {[%clk 0:00:10.2]} 27... Rd8
{[%clk 0:00:23.4]} 28. Bd5 {[%clk 0:00:07]} 28... Rxd5 {[%clk 0:00:21.1]} 0-1

[Event "Early-Titled-Tuesday-Blitz-July-09-2024"]
[Site "Chess.com"]
[Date "2024.07.09"]
[Round "2"]
[White "vi_pranav"]
[Black "Pavlov_Sergey"]
[Result "1-0"]
[WhiteElo "3019"]
[BlackElo "2659"]
[TimeControl "180+1"]
[EndTime "8:16:59 PDT"]
[Termination "vi_pranav won on time"]

1. Nf3 {[%clk 0:03:00.9]} 1... c5 {[%clk 0:02:58.4]} 2. e4 {[%clk 0:02:59.3]}
2... Nf6 {[%clk 0:02:54.7]} 3. Nc3 {[%clk 0:02:56.9]} 3... Nc6 {[%clk
0:02:54.3]} 4. Bb5 {[%clk 0:02:52.4]} 4... e5 {[%clk 0:02:53.3]} 5. O-O {[%clk
0:02:48.6]} 5... d6 {[%clk 0:02:51.9]} 6. d3 {[%clk 0:02:47.2]} 6... Be7 {[%clk
0:02:51]} 7. h3 {[%clk 0:02:47.7]} 7... O-O {[%clk 0:02:49.7]} 8. Bg5 {[%clk
0:02:46.6]} 8... Be6 {[%clk 0:02:40.5]} 9. Bc4 {[%clk 0:02:42.3]} 9... h6 {[%clk
0:02:22.9]} 10. Bxf6 {[%clk 0:02:36]} 10... Bxf6 {[%clk 0:02:23.1]} 11. Nd5
{[%clk 0:02:36.4]} 11... g6 {[%clk 0:02:22.5]} 12. c3 {[%clk 0:02:34.1]} 12...
Bg7 {[%clk 0:02:21.6]} 13. a4 {[%clk 0:02:32.8]} 13... Qd7 {[%clk 0:02:10.9]}
14. a5 {[%clk 0:02:21.7]} 14... Kh7 {[%clk 0:02:08.3]} 15. a6 {[%clk 0:02:20.7]}
15... b6 {[%clk 0:02:04.5]} 16. Bb5 {[%clk 0:02:20.3]} 16... f5 {[%clk
0:01:56.8]} 17. Nd2 {[%clk 0:02:06]} 17... Rac8 {[%clk 0:01:47.6]} 18. Nc4
{[%clk 0:02:00]} 18... f4 {[%clk 0:01:35.2]} 19. f3 {[%clk 0:01:57.7]} 19... Qd8
{[%clk 0:01:21]} 20. Qa4 {[%clk 0:01:54]} 20... Ne7 {[%clk 0:01:18.3]} 21. Nxe7
{[%clk 0:01:50.5]} 21... Qxe7 {[%clk 0:01:18.2]} 22. Nd2 {[%clk 0:01:51.2]}
22... Bf6 {[%clk 0:01:02.8]} 23. Kf2 {[%clk 0:01:36.2]} 23... Bh4+ {[%clk
0:01:01.2]} 24. Ke2 {[%clk 0:01:36.4]} 24... g5 {[%clk 0:01:00.3]} 25. Kd1
{[%clk 0:01:34.2]} 25... h5 {[%clk 0:01:00.4]} 26. Kc2 {[%clk 0:01:34.7]} 26...
Bg3 {[%clk 0:00:51.4]} 27. Rh1 {[%clk 0:01:34.4]} 27... Kg7 {[%clk 0:00:50.8]}
28. Rad1 {[%clk 0:01:33.3]} 28... Rh8 {[%clk 0:00:50.4]} 29. Kb1 {[%clk
0:01:27.1]} 29... g4 {[%clk 0:00:50.2]} 30. Nf1 {[%clk 0:01:12.9]} 30... Bf2
{[%clk 0:00:46.9]} 31. Qc2 {[%clk 0:01:08.1]} 31... g3 {[%clk 0:00:43.9]} 32.
Nd2 {[%clk 0:01:07.8]} 32... h4 {[%clk 0:00:28.1]} 33. Nc4 {[%clk 0:01:06.7]}
33... Rhd8 {[%clk 0:00:27]} 34. Rhf1 {[%clk 0:01:05.1]} 34... Kf6 {[%clk
0:00:26.2]} 35. Rxf2 {[%clk 0:01:02.9]} 35... gxf2 {[%clk 0:00:26]} 36. Qxf2
{[%clk 0:01:03.8]} 36... Kg5 {[%clk 0:00:26.2]} 37. Nd2 {[%clk 0:01:01.7]} 37...
Bd7 {[%clk 0:00:22.8]} 38. Bc4 {[%clk 0:00:49.1]} 38... b5 {[%clk 0:00:22.3]}
39. Bd5 {[%clk 0:00:48.9]} 39... Bc6 {[%clk 0:00:22.3]} 40. Rg1 {[%clk
0:00:48.8]} 1-0

[Event "Early-Titled-Tuesday-Blitz-July-09-2024"]
[Site "Chess.com"]
[Date "2024.07.09"]
[Round "2"]
[White "Chessdude1987"]
[Black "ChessSwole"]
[Result "0-1"]
[WhiteElo "2315"]
[BlackElo "2707"]
[TimeControl "180+1"]
[EndTime "8:16:59 PDT"]
[Termination "ChessSwole won on time"]

1. e4 {[%clk 0:03:00.9]} 1... e6 {[%clk 0:03:00]} 2. d4 {[%clk 0:03:00.3]} 2...
d5 {[%clk 0:03:00.5]} 3. exd5 {[%clk 0:03:00.7]} 3... exd5 {[%clk 0:03:00.8]} 4.
Nf3 {[%clk 0:03:01.3]} 4... Nf6 {[%clk 0:03:00.1]} 5. Bd3 {[%clk 0:03:01.8]}
5... Bd6 {[%clk 0:03:00.3]} 6. Qe2+ {[%clk 0:03:02.1]} 6... Be6 {[%clk
0:03:00.6]} 7. Ne5 {[%clk 0:02:48.7]} 7... O-O {[%clk 0:02:56.7]} 8. Bg5 {[%clk
0:02:45]} 8... c5 {[%clk 0:02:53.2]} 9. dxc5 {[%clk 0:02:39.2]} 9... Bxc5 {[%clk
0:02:39.5]} 10. O-O {[%clk 0:02:38]} 10... Nc6 {[%clk 0:02:35]} 11. Nxc6 {[%clk
0:02:32.2]} 11... bxc6 {[%clk 0:02:33.9]} 12. Nd2 {[%clk 0:02:29.3]} 12... a5
{[%clk 0:02:29.7]} 13. Qf3 {[%clk 0:02:23.7]} 13... Be7 {[%clk 0:02:26.3]} 14.
c4 {[%clk 0:02:17.7]} 14... h6 {[%clk 0:02:21.6]} 15. Bf4 {[%clk 0:02:08.9]}
15... a4 {[%clk 0:02:10.8]} 16. h3 {[%clk 0:02:07.4]} 16... Qb6 {[%clk
0:02:09.1]} 17. Rab1 {[%clk 0:01:57]} 17... Rfd8 {[%clk 0:01:59.2]} 18. Rfd1
{[%clk 0:01:52.5]} 18... Qb4 {[%clk 0:01:35.8]} 19. a3 {[%clk 0:01:46.1]} 19...
Qb6 {[%clk 0:01:27.2]} 20. cxd5 {[%clk 0:01:40.5]} 20... Bxd5 {[%clk 0:01:22]}
21. Qe2 {[%clk 0:01:30.4]} 21... Re8 {[%clk 0:01:19.9]} 22. Be3 {[%clk
0:01:24.4]} 22... Qb7 {[%clk 0:01:13]} 23. Qf1 {[%clk 0:01:17.4]} 23... Ba2
{[%clk 0:01:10]} 24. Ra1 {[%clk 0:01:05.1]} 24... Qxb2 {[%clk 0:01:05.6]} 25.
Nc4 {[%clk 0:01:05.3]} 25... Bxc4 {[%clk 0:01:04.9]} 26. Bxc4 {[%clk 0:01:05.4]}
26... Nd5 {[%clk 0:00:58]} 27. Bxd5 {[%clk 0:00:45.7]} 27... cxd5 {[%clk
0:00:58.9]} 28. Rxd5 {[%clk 0:00:45.5]} 28... Bxa3 {[%clk 0:00:54.4]} 29. Rb1
{[%clk 0:00:30.5]} 29... Qf6 {[%clk 0:00:45.7]} 30. Bd4 {[%clk 0:00:30.1]} 30...
Qg6 {[%clk 0:00:43.2]} 31. Rd7 {[%clk 0:00:25.2]} 31... Rad8 {[%clk 0:00:39.3]}
32. Rxd8 {[%clk 0:00:13.1]} 32... Rxd8 {[%clk 0:00:40.2]} 33. Bb6 {[%clk
0:00:13]} 33... Rb8 {[%clk 0:00:39.6]} 34. Qb5 {[%clk 0:00:01.4]} 34... Bc5
{[%clk 0:00:39.8]} 0-1

[Event "Early-Titled-Tuesday-Blitz-July-09-2024"]
[Site "Chess.com"]
[Date "2024.07.09"]
[Round "2"]
[White "AEMEffi"]
[Black "Brown_Bear_MGL"]
[Result "0-1"]
[WhiteElo "2320"]
[BlackElo "2620"]
[TimeControl "180+1"]
[EndTime "8:16:59 PDT"]
[Termination "Brown_Bear_MGL won by resignation"]

1. d4 {[%clk 0:02:59.7]} 1... Nf6 {[%clk 0:02:58.8]} 2. c4 {[%clk 0:02:57.1]}
2... e6 {[%clk 0:02:58.9]} 3. Nc3 {[%clk 0:02:56.2]} 3... Bb4 {[%clk 0:02:58.9]}
4. e3 {[%clk 0:02:56.6]} 4... b6 {[%clk 0:02:54.8]} 5. f3 {[%clk 0:02:55.5]}
5... O-O {[%clk 0:02:35.3]} 6. e4 {[%clk 0:02:55.1]} 6... c5 {[%clk 0:02:25.4]}
7. d5 {[%clk 0:02:54.6]} 7... exd5 {[%clk 0:02:21.8]} 8. cxd5 {[%clk 0:02:55.5]}
8... d6 {[%clk 0:02:19.9]} 9. Ne2 {[%clk 0:02:47.9]} 9... Nbd7 {[%clk
0:02:14.1]} 10. Ng3 {[%clk 0:02:44.8]} 10... a6 {[%clk 0:02:03.7]} 11. a3 {[%clk
0:02:36.3]} 11... Ba5 {[%clk 0:02:01.1]} 12. a4 {[%clk 0:02:26.1]} 12... b5
{[%clk 0:01:45.2]} 13. Bd2 {[%clk 0:02:14.9]} 13... bxa4 {[%clk 0:01:22.8]} 14.
Nxa4 {[%clk 0:02:05.3]} 14... Rb8 {[%clk 0:01:16.6]} 15. Nf5 {[%clk 0:01:41]}
15... Ne5 {[%clk 0:01:15.4]} 16. Ne3 {[%clk 0:01:33.2]} 16... Bd7 {[%clk
0:01:12.9]} 17. Bc3 {[%clk 0:01:15.2]} 17... Bxc3+ {[%clk 0:01:08.5]} 18. bxc3
{[%clk 0:01:16.1]} 18... Qa5 {[%clk 0:01:01.6]} 19. Qc2 {[%clk 0:01:02.4]} 19...
Rb7 {[%clk 0:01:01.5]} 20. Be2 {[%clk 0:01:00.2]} 20... Rfb8 {[%clk 0:01:00.6]}
21. O-O {[%clk 0:01:00.1]} 21... g6 {[%clk 0:00:54.1]} 22. h3 {[%clk 0:00:56.2]}
22... Nh5 {[%clk 0:00:53.7]} 23. Nc4 {[%clk 0:00:51.2]} 23... Nxc4 {[%clk
0:00:51.7]} 24. Bxc4 {[%clk 0:00:52.1]} 24... Qd8 {[%clk 0:00:49]} 25. f4 {[%clk
0:00:50.3]} 25... Qe7 {[%clk 0:00:46.9]} 26. Bd3 {[%clk 0:00:47.2]} 26... Bxa4
{[%clk 0:00:44.1]} 27. Qxa4 {[%clk 0:00:43.1]} 27... Rb2 {[%clk 0:00:43.2]} 28.
Rab1 {[%clk 0:00:35.6]} 28... Qh4 {[%clk 0:00:42.6]} 29. Rxb2 {[%clk 0:00:33.9]}
29... Rxb2 {[%clk 0:00:43.5]} 30. Qa3 {[%clk 0:00:25.9]} 30... Rd2 {[%clk
0:00:41.4]} 31. Qxa6 {[%clk 0:00:13.2]} 31... Qg3 {[%clk 0:00:36.6]} 32. Be2
{[%clk 0:00:12.8]} 32... Nxf4 {[%clk 0:00:35.1]} 33. Bf3 {[%clk 0:00:07.4]}
33... Rxg2+ {[%clk 0:00:32.9]} 0-1